fUST/lending_fUST_20250720
["ID","MTS","AMOUNT","RATE_DAILY","PERIOD"]
[373453007,1753014649249,-151.0,0.00018503,2]
[373453009,1753014649261,-151.0,0.00018503,2]
[373453012,1753014649274,-151.0,0.00018503,2]
[373453014,1753014649285,-300.35007006,0.00018521,2]
[373453016,1753014649298,-500.0,0.00018545,2]
[373453019,1753014649310,-460.0,0.00018546,2]
[373453021,1753014649320,-595.21,0.00018546,2]
[373453023,1753014649330,-460.0,0.00018601,2]
[373453025,1753014649340,-460.0,0.00018601,2]
[373453041,1753014649479,-487.07,0.00018601,2]
[373453044,1753014649493,-636.14,0.00018602,2]
[373453046,1753014649503,-460.0,0.00018602,2]
[373453048,1753014649512,-460.0,0.00018602,2]
[373453050,1753014649521,-3665.59419369,0.00018624,2]
[373453052,1753014649531,-1302.68,0.00018649,2]
[373453054,1753014649540,-460.0,0.00018696,2]
[373453056,1753014649549,-500.0,0.00018771,2]
[373453058,1753014649558,-500.0,0.00018772,2]
[373453060,1753014649567,-160.645502,0.00018772,2]
[373453062,1753014649577,-151.0,0.00018772,2]
[373453064,1753014649586,-151.0,0.00018772,2]
[373453066,1753014649596,-217.977377,0.00018772,2]
[373453068,1753014649605,-217.977377,0.00018772,2]
[373453070,1753014649615,-460.0,0.00018773,2]
[373453072,1753014649626,-460.0,0.00018773,2]
[373453074,1753014649639,-466.81381977,0.00018773,2]
[373453076,1753014649648,-460.0,0.00018773,2]
[373453078,1753014649657,-460.0,0.00018773,2]
[373453080,1753014649667,-460.0,0.00018773,2]
[373453082,1753014649676,-2684.6,0.00018773,2]
[373453084,1753014649686,-460.0,0.00018773,2]
[373453087,1753014649696,-460.0,0.00018773,2]
[373453089,1753014649706,-460.0,0.00018773,2]
[373453091,1753014649715,-460.0,0.00018773,2]
[373453093,1753014649724,-460.0,0.00018774,2]
[373453095,1753014649734,-208.864157,0.00018774,2]
[373453097,1753014649743,-208.864157,0.00018774,2]
[373453099,1753014649751,-151.0,0.00018774,2]
[373453101,1753014649761,-151.0,0.00018774,2]
[373453103,1753014649770,-151.0,0.00018777,2]
[373453105,1753014649779,-151.0,0.00018777,2]
[373453107,1753014649788,-151.0,0.00018777,2]
[373453109,1753014649797,-160.648547,0.00018777,2]
[373453111,1753014649805,-160.648547,0.00018777,2]
[373453113,1753014649814,-162.006643,0.00018777,2]
[373453115,1753014649823,-162.006643,0.00018777,2]
[373453116,1753014649833,-1560.48945792,0.00018789,2]
[373453118,1753014649842,-460.0,0.0001882,2]
[373453120,1753014649851,-595.21,0.0001882,2]
[373453123,1753014649860,-151.0,0.00018865,2]
[373453124,1753014649869,-3665.59419369,0.00018866,2]
[373453127,1753014649879,-160.0,0.00018869,2]
[373453129,1753014649888,-500.0,0.00018871,2]
[373453131,1753014649898,-460.0,0.00018872,2]
[373453133,1753014649907,-460.0,0.00018872,2]
[373453135,1753014649916,-460.0,0.00018872,2]
[373453137,1753014649925,-460.0,0.00018872,2]
[373453139,1753014649934,-460.0,0.00018872,2]
[373453141,1753014649943,-379.57548603,0.00018872,2]
[373453143,1753014649952,-460.0,0.00018872,2]
[373453145,1753014649961,-460.0,0.00018872,2]
[373453147,1753014649970,-460.0,0.00018872,2]
[373453149,1753014649979,-460.0,0.00018872,2]
[373453151,1753014649988,-514.76701722,0.00018872,2]
[373453153,1753014649997,-460.0,0.00018872,2]
[373453155,1753014650006,-460.0,0.00018872,2]
[373453157,1753014650015,-460.0,0.00018872,2]
[373453159,1753014650024,-460.0,0.00018872,2]
[373453161,1753014650033,-151.0,0.00018872,2]
[373453163,1753014650042,-151.0,0.00018872,2]
[373453165,1753014650051,-460.0,0.00018872,2]
[373453167,1753014650060,-517.171336,0.00018872,2]
[373453169,1753014650068,-517.171336,0.00018872,2]
[373453171,1753014650077,-460.0,0.00018872,2]
[373453173,1753014650086,-460.0,0.00018872,2]
[373453175,1753014650095,-460.0,0.00018872,2]
[373453177,1753014650104,-460.0,0.00018872,2]
[373453178,1753014650113,-460.0,0.00018872,2]
[373453181,1753014650124,-460.0,0.00018872,2]
[373453183,1753014650133,-460.0,0.00018872,2]
[373453185,1753014650142,-460.0,0.00018872,2]
[373453186,1753014650151,-500.0,0.00018872,2]
[373453188,1753014650161,-460.0,0.00018872,2]
[373453190,1753014650170,-460.0,0.00018872,2]
[373453192,1753014650179,-460.0,0.00018872,2]
[373453194,1753014650188,-460.0,0.00018872,2]
[373453196,1753014650197,-461.70436865,0.00018872,2]
[373453198,1753014650206,-460.0,0.00018872,2]
[373453200,1753014650215,-460.0,0.00018872,2]
[373453202,1753014650224,-460.0,0.00018872,2]
[373453204,1753014650233,-460.0,0.00018872,2]
[373453206,1753014650242,-460.0,0.00018872,2]
[373453208,1753014650251,-460.0,0.00018872,2]
[373453210,1753014650261,-217.977377,0.00018872,2]
[373453212,1753014650270,-217.977377,0.00018872,2]
[373453214,1753014650279,-460.0,0.00018872,2]
[373453216,1753014650288,-460.0,0.00018872,2]
[373453218,1753014650298,-460.0,0.00018872,2]
[373453220,1753014650307,-460.0,0.00018872,2]
[373453222,1753014650316,-460.0,0.00018872,2]
[373453224,1753014650325,-460.0,0.00018872,2]
[373453227,1753014650334,-460.0,0.00018872,2]
[373453229,1753014650343,-460.0,0.00018872,2]
[373453230,1753014650352,-460.0,0.00018872,2]
[373453232,1753014650361,-460.0,0.00018872,2]
[373453235,1753014650371,-460.0,0.00018872,2]
[373453237,1753014650380,-460.0,0.00018873,2]
[373453238,1753014650389,-500.0,0.00018873,2]
[373453240,1753014650399,-464.56500163,0.00018873,2]
[373453243,1753014650408,-151.0,0.00018873,2]
[373453245,1753014650417,-151.0,0.00018873,2]
[373453247,1753014650426,-460.0,0.00018873,2]
[373453248,1753014650436,-460.0,0.00018873,2]
[373453251,1753014650445,-208.864157,0.00018873,2]
[373453253,1753014650454,-208.864157,0.00018873,2]
[373453255,1753014650463,-460.0,0.00018873,2]
[373453257,1753014650472,-151.0,0.00018873,2]
[373453259,1753014650482,-186.181533,0.00018873,2]
[373453261,1753014650491,-460.0,0.00018873,2]
[373453263,1753014650500,-460.0,0.00018873,2]
[373453265,1753014650510,-448.84,0.00018875,2]
[373453267,1753014650519,-460.0,0.00018875,2]
[373453269,1753014650528,-487.07,0.00018875,2]
[373453271,1753014650537,-636.14,0.00018876,2]
[373453273,1753014650546,-460.0,0.00018876,2]
[373453275,1753014650555,-460.0,0.00018876,2]
[373453277,1753014650563,-312.99209807,0.000189,2]
[373453278,1753014650573,-1302.68,0.00018923,2]
[373453281,1753014650583,-151.0,0.00018937,2]
[373453283,1753014650592,-151.0,0.00018937,2]
[373453285,1753014650601,-151.0,0.00018937,2]
[373453287,1753014650610,-160.648547,0.00018937,2]
[373453289,1753014650619,-160.648547,0.00018937,2]
[373453291,1753014650631,-162.006643,0.00018937,2]
[373453293,1753014650642,-162.006643,0.00018937,2]
[373453294,1753014650651,-500.0,0.00018948,2]
[373453296,1753014650660,-500.0,0.00018948,2]
[373453298,1753014650669,-460.0,0.00018949,2]
[373453301,1753014650680,-460.0,0.00018949,2]
[373453302,1753014650690,-460.0,0.00018949,2]
[373453304,1753014650699,-460.0,0.00018949,2]
[373453306,1753014650708,-460.0,0.00018949,2]
[373453309,1753014650720,-460.8337748,0.00018949,2]
[373453311,1753014650729,-460.0,0.00018949,2]
[373453313,1753014650738,-460.0,0.00018949,2]
[373453315,1753014650748,-460.0,0.00018949,2]
[373453317,1753014650757,-460.0,0.00018949,2]
[373453319,1753014650766,-460.0,0.00018949,2]
[373453321,1753014650775,-460.0,0.00018949,2]
[373453323,1753014650785,-460.0,0.00018949,2]
[373453325,1753014650794,-460.0,0.00018949,2]
[373453327,1753014650803,-460.0,0.00018949,2]
[373453329,1753014650812,-460.0,0.00018949,2]
[373453331,1753014650822,-460.0,0.00018949,2]
[373453333,1753014650831,-460.0,0.00018949,2]
[373453335,1753014650840,-460.0,0.00018949,2]
[373453337,1753014650849,-460.0,0.00018949,2]
[373453339,1753014650858,-460.0,0.00018949,2]
[373453341,1753014650868,-460.0,0.00018949,2]
[373453343,1753014650878,-460.0,0.00018949,2]
[373453345,1753014650887,-460.0,0.00018949,2]
[373453347,1753014650896,-460.0,0.00018949,2]
[373453349,1753014650905,-460.0,0.00018949,2]
[373453351,1753014650916,-460.0,0.00018949,2]
[373453353,1753014650925,-460.0,0.00018949,2]
[373453354,1753014650934,-460.0,0.00018949,2]
[373453356,1753014650943,-460.0,0.00018949,2]
[373453358,1753014650953,-460.0,0.00018949,2]
[373453361,1753014650963,-460.0,0.0001897,2]
[373453363,1753014650972,-500.0,0.00019046,2]
[373453364,1753014650981,-486.78,0.00019047,2]
[373453366,1753014650990,-217.977377,0.00019047,2]
[373453368,1753014650999,-217.977377,0.00019047,2]
[373453371,1753014651009,-460.0,0.00019047,2]
[373453372,1753014651018,-2684.6,0.00019047,2]
[373453375,1753014651027,-460.0,0.00019047,2]
[373453377,1753014651037,-460.0,0.00019047,2]
[373453378,1753014651046,-151.0,0.00019048,2]
[373453381,1753014651055,-151.0,0.00019048,2]
[373453383,1753014651065,-151.0,0.00019051,2]
[373453384,1753014651074,-191.36,0.00019051,2]
[373453386,1753014651084,-151.0,0.00019051,2]
[373453388,1753014651093,-151.0,0.00019051,2]
[373453391,1753014651103,-201.964236,0.00019093,2]
[373453393,1753014651165,-201.964236,0.00019093,2]
[373453395,1753014651174,-151.0,0.00019093,2]
[373453396,1753014651185,-151.0,0.00019093,2]
[373453399,1753014651194,-151.0,0.00019093,2]
[373453401,1753014651204,-236.682059,0.00019093,2]
[373453402,1753014651213,-517.171336,0.00019093,2]
[373453405,1753014651223,-517.171336,0.00019093,2]
[373453407,1753014651232,-151.0,0.00019093,2]
[373453408,1753014651241,-151.0,0.00019093,2]
[373453411,1753014651251,-160.648547,0.00019093,2]
[373453413,1753014651260,-160.648547,0.00019093,2]
[373453414,1753014651269,-162.006643,0.00019093,2]
[373453417,1753014651279,-162.006643,0.00019093,2]
[373453419,1753014651288,-500.0,0.00019093,2]
[373453420,1753014651297,-208.864157,0.00019093,2]
[373453423,1753014651307,-208.864157,0.00019093,2]
[373453424,1753014651316,-151.0,0.00019093,2]
[373453427,1753014651325,-460.0,0.00019094,2]
[373453428,1753014651335,-595.21,0.00019094,2]
[373453431,1753014651345,-3665.59419369,0.00019107,2]
[373453432,1753014651354,-460.0,0.00019146,2]
[373453434,1753014651364,-405.25631627,0.00019146,2]
[373453437,1753014651373,-461.23864201,0.00019146,2]
[373453438,1753014651383,-460.0,0.00019146,2]
[373453440,1753014651392,-460.0,0.00019146,2]
[373453442,1753014651401,-460.0,0.00019146,2]
[373453445,1753014651410,-462.64411128,0.00019146,2]
[373453446,1753014651419,-461.43754657,0.00019146,2]
[373453448,1753014651428,-460.0,0.00019146,2]
[373453451,1753014651438,-460.0,0.00019146,2]
[373453452,1753014651447,-460.36865197,0.00019146,2]
[373453454,1753014651456,-460.0,0.00019146,2]
[373453456,1753014651465,-460.0,0.00019146,2]
[373453458,1753014651475,-462.74713378,0.00019146,2]
[373453460,1753014651484,-500.0,0.00019146,2]
[373453462,1753014651493,-460.0,0.00019146,2]
[373453464,1753014651502,-460.0,0.00019146,2]
[373453466,1753014651512,-460.0,0.00019146,2]
[373453468,1753014651521,-460.0,0.00019146,2]
[373453470,1753014651531,-460.0,0.00019146,2]
[373453472,1753014651540,-460.0,0.00019146,2]
[373453474,1753014651549,-460.0,0.00019146,2]
[373453476,1753014651558,-151.0,0.00019147,2]
[373453478,1753014651567,-460.0,0.00019147,2]
[373453480,1753014651576,-500.0,0.00019147,2]
[373453482,1753014651585,-460.0,0.00019147,2]
[373453484,1753014651595,-184.33171475,0.00019147,2]
[373453486,1753014651605,-460.0,0.00019147,2]
[373453488,1753014651615,-460.0,0.00019147,2]
[373453490,1753014651626,-460.0,0.00019147,2]
[373453492,1753014651637,-487.07,0.00019149,2]
[373453494,1753014651647,-636.14,0.0001915,2]
[373453496,1753014651656,-460.0,0.0001915,2]
[373453498,1753014651666,-460.0,0.0001915,2]
[373453500,1753014651675,-500.0,0.00019174,2]
[373453502,1753014651685,-500.90331733,0.00019174,2]
[373453504,1753014651695,-500.88694253,0.00019174,2]
[373453506,1753014651704,-606.86677499,0.00019174,2]
[373453508,1753014651713,-500.0,0.00019174,2]
[373453510,1753014651723,-501.18180365,0.00019174,2]
[373453512,1753014651732,-501.45215473,0.00019174,2]
[373453514,1753014651741,-500.0,0.00019174,2]
[373453516,1753014651751,-151.0,0.00019178,2]
[373453518,1753014651761,-151.0,0.00019178,2]
[373453520,1753014651770,-217.977377,0.00019178,2]
[373453522,1753014651780,-217.977383,0.00019178,2]
[373453524,1753014651789,-158.658992,0.00019178,2]
[373453535,1753014651892,-5000.0,0.00019178,2]
[373453537,1753014651902,-666.0,0.00019178,2]
[373453539,1753014651911,-1302.68,0.00019197,2]
[373453541,1753014651920,-500.0,0.00019222,2]
[373453543,1753014651929,-151.0,0.00019223,2]
[373453545,1753014651938,-151.0,0.00019223,2]
[373453547,1753014651948,-151.0,0.00019223,2]
[373453549,1753014651957,-151.0,0.00019223,2]
[373453551,1753014651966,-151.0,0.00019223,2]
[373453553,1753014651975,-460.0,0.00019223,2]
[373453555,1753014651984,-460.0,0.00019223,2]
[373453557,1753014651995,-460.0,0.00019223,2]
[373453558,1753014652007,-460.0,0.00019223,2]
[373453561,1753014652017,-517.171336,0.00019223,2]
[373453563,1753014652026,-517.171336,0.00019223,2]
[373453564,1753014652036,-460.0,0.00019223,2]
[373453566,1753014652045,-151.0,0.00019223,2]
[373453568,1753014652054,-265.299471,0.00019223,2]
[373453570,1753014652064,-460.0,0.00019223,2]
[373453572,1753014652073,-460.0,0.00019223,2]
[373453574,1753014652083,-460.0,0.00019223,2]
[373453576,1753014652092,-460.0,0.00019223,2]
[373453578,1753014652101,-160.648547,0.00019223,2]
[373453580,1753014652111,-460.0,0.00019223,2]
[373453582,1753014652120,-160.648547,0.00019223,2]
[373453584,1753014652131,-460.0,0.00019223,2]
[373453586,1753014652140,-162.006643,0.00019223,2]
[373453588,1753014652150,-162.006643,0.00019223,2]
[373453590,1753014652159,-460.0,0.00019223,2]
[373453592,1753014652168,-460.0,0.00019223,2]
[373453594,1753014652177,-460.0,0.00019223,2]
[373453596,1753014652186,-460.0,0.00019223,2]
[373453598,1753014652195,-460.0,0.00019223,2]
[373453600,1753014652204,-460.0,0.00019223,2]
[373453602,1753014652214,-460.0,0.00019223,2]
[373453604,1753014652223,-460.0,0.00019223,2]
[373453605,1753014652232,-208.864157,0.00019223,2]
[373453607,1753014652242,-208.864151,0.00019223,2]
[373453609,1753014652251,-460.0,0.00019223,2]
[373453611,1753014652260,-151.0,0.00019223,2]
[373453613,1753014652269,-500.0,0.00019239,2]
[373453615,1753014652278,-500.0,0.00019239,2]
[373453617,1753014652288,-435.38095271,0.00019239,2]
[373453619,1753014652297,-500.0,0.00019239,2]
[373453621,1753014652307,-500.0,0.00019239,2]
[373453623,1753014652317,-404.19368056,0.00019239,2]
[373453625,1753014652326,-500.0,0.00019239,2]
[373453627,1753014652335,-500.0,0.00019239,2]
[373453629,1753014652345,-500.0,0.00019239,2]
[373453631,1753014652354,-500.0,0.00019239,2]
[373453633,1753014652364,-500.0,0.00019239,2]
[373453635,1753014652375,-500.0,0.00019239,2]
[373453637,1753014652385,-501.80415761,0.00019239,2]
[373453639,1753014652395,-503.28821453,0.00019239,2]
[373453641,1753014652404,-500.82272692,0.00019239,2]
[373453643,1753014652414,-501.11000924,0.00019239,2]
[373453645,1753014652423,-500.0,0.00019239,2]
[373453647,1753014652433,-500.0,0.00019239,2]
[373453649,1753014652443,-500.94792548,0.00019239,2]
[373453651,1753014652453,-500.0,0.00019239,2]
[373453653,1753014652463,-500.0,0.00019239,2]
[373453655,1753014652472,-502.06587387,0.00019239,2]
[373453657,1753014652481,-460.0,0.00019244,2]
[373453659,1753014652491,-500.0,0.0001932,2]
[373453661,1753014652501,-268.78754249,0.00019321,2]
[373453663,1753014652510,-460.0,0.00019321,2]
[373453665,1753014652519,-2684.6,0.00019321,2]
[373453667,1753014652529,-460.0,0.00019321,2]
[373453669,1753014652539,-460.0,0.00019321,2]
[373453671,1753014652548,-151.0,0.00019329,2]
[373453673,1753014652558,-151.0,0.00019329,2]
[373453675,1753014652567,-151.0,0.00019329,2]
[373453677,1753014652577,-151.0,0.00019329,2]
[373453679,1753014652586,-517.171336,0.00019329,2]
[373453681,1753014652595,-517.171336,0.00019329,2]
[373453683,1753014652604,-151.0,0.00019329,2]
[373453685,1753014652613,-160.648547,0.00019329,2]
[373453686,1753014652622,-160.648547,0.00019329,2]
[373453688,1753014652634,-151.0,0.00019329,2]
[373453691,1753014652647,-162.006643,0.00019329,2]
[373453693,1753014652658,-162.006643,0.00019329,2]
[373453695,1753014652667,-170.0,0.00019329,2]
[373453696,1753014652676,-30257.81230337,0.00019329,2]
[373453698,1753014652686,-3665.59419369,0.00019348,2]
[373453700,1753014652695,-201.964236,0.00019367,2]
[373453702,1753014652705,-201.964236,0.00019367,2]
[373453704,1753014652715,-245.681376,0.00019367,2]
[373453706,1753014652725,-460.0,0.00019367,2]
[373453708,1753014652734,-460.0,0.00019367,2]
[373453710,1753014652743,-460.0,0.00019367,2]
[373453712,1753014652754,-460.0,0.00019367,2]
[373453714,1753014652762,-460.0,0.00019367,2]
[373453716,1753014652771,-460.0,0.00019367,2]
[373453718,1753014652780,-151.0,0.00019367,2]
[373453720,1753014652790,-460.81066275,0.00019367,2]
[373453722,1753014652799,-151.0,0.00019367,2]
[373453724,1753014652807,-460.0,0.00019367,2]
[373453726,1753014652816,-460.0,0.00019367,2]
[373453728,1753014652826,-460.42138614,0.00019367,2]
[373453730,1753014652835,-460.0,0.00019367,2]
[373453732,1753014652845,-460.0,0.00019367,2]
[373453734,1753014652855,-460.0,0.00019367,2]
[373453736,1753014652864,-460.0,0.00019367,2]
[373453738,1753014652873,-523.69945131,0.00019367,2]
[373453740,1753014652884,-460.0,0.00019367,2]
[373453742,1753014652893,-460.0,0.00019367,2]
[373453744,1753014652902,-460.0,0.00019367,2]
[373453746,1753014652911,-460.0,0.00019367,2]
[373453748,1753014652921,-463.50686102,0.00019367,2]
[373453750,1753014652930,-513.18947775,0.00019367,2]
[373453752,1753014652939,-460.0,0.00019367,2]
[373453753,1753014652948,-460.0,0.00019367,2]
[373453755,1753014652957,-426.63469732,0.00019367,2]
[373453757,1753014652967,-460.0,0.00019367,2]
[373453759,1753014652976,-460.0,0.00019367,2]
[373453761,1753014652985,-407.20143883,0.00019367,2]
[373453763,1753014652995,-517.171336,0.00019367,2]
[373453765,1753014653004,-517.171336,0.00019367,2]
[373453767,1753014653013,-151.0,0.00019367,2]
[373453769,1753014653023,-460.0,0.00019367,2]
[373453771,1753014653032,-507.02,0.00019367,2]
[373453773,1753014653041,-460.0,0.00019367,2]
[373453775,1753014653050,-460.0,0.00019367,2]
[373453777,1753014653059,-160.648547,0.00019367,2]
[373453779,1753014653069,-160.648547,0.00019367,2]
[373453781,1753014653078,-151.0,0.00019367,2]
[373453783,1753014653088,-162.006643,0.00019367,2]
[373453785,1753014653097,-162.006643,0.00019367,2]
[373453787,1753014653106,-460.0,0.00019367,2]
[373453789,1753014653115,-514.41073512,0.00019367,2]
[373453791,1753014653126,-460.0,0.00019367,2]
[373453793,1753014653136,-460.0,0.00019368,2]
[373453795,1753014653145,-595.21,0.00019368,2]
[373453797,1753014653154,-505.21196279,0.00019373,2]
[373453799,1753014653163,-500.0,0.00019373,2]
[373453801,1753014653172,-500.0,0.00019373,2]
[373453803,1753014653181,-501.91390619,0.00019373,2]
[373453804,1753014653190,-500.0,0.00019373,2]
[373453806,1753014653199,-500.0,0.00019373,2]
[373453808,1753014653208,-501.90140821,0.00019373,2]
[373453810,1753014653217,-500.0,0.00019373,2]
[373453812,1753014653226,-500.0,0.00019373,2]
[373453814,1753014653234,-165.42282706,0.00019373,2]
[373453816,1753014653243,-158.19723148,0.00019373,2]
[373453818,1753014653253,-500.0,0.00019373,2]
[373453820,1753014653262,-1560.48945792,0.00019402,2]
[373453822,1753014653271,-260.0,0.00019417,2]
[373453824,1753014653280,-460.0,0.0001942,2]
[373453826,1753014653290,-460.0,0.0001942,2]
[373453828,1753014653299,-460.0,0.0001942,2]
[373453830,1753014653308,-460.0,0.0001942,2]
[373453832,1753014653318,-460.0,0.0001942,2]
[373453834,1753014653327,-460.0,0.00019421,2]
[373453836,1753014653337,-151.0,0.00019421,2]
[373453837,1753014653346,-460.0,0.00019421,2]
[373453839,1753014653355,-460.0,0.00019421,2]
[373453841,1753014653364,-530.41000048,0.00019421,2]
[373453843,1753014653374,-460.0,0.00019421,2]
[373453845,1753014653383,-460.0,0.00019421,2]
[373453847,1753014653392,-1937.42832323,0.00019423,2]
[373453849,1753014653401,-151.385049,0.00019423,2]
[373453851,1753014653411,-151.0,0.00019423,2]
[373453853,1753014653420,-201.964236,0.00019423,2]
[373453855,1753014653429,-201.964236,0.00019423,2]
[373453857,1753014653439,-151.0,0.00019423,2]
[373453859,1753014653447,-160.648547,0.00019423,2]
[373453861,1753014653458,-160.648547,0.00019423,2]
[373453863,1753014653467,-162.006643,0.00019423,2]
[373453865,1753014653476,-162.006643,0.00019423,2]
[373453867,1753014653486,-487.07,0.00019423,2]
[373453869,1753014653495,-636.14,0.00019424,2]
[373453871,1753014653504,-460.0,0.00019424,2]
[373453873,1753014653513,-460.0,0.00019424,2]
[373453875,1753014653523,-1302.68,0.00019471,2]
[373453877,1753014653532,-160.0,0.00019491,2]
[373453879,1753014653542,-160.0,0.00019491,2]
[373453880,1753014653551,-160.0,0.00019491,2]
[373453882,1753014653560,-460.0,0.00019497,2]
[373453884,1753014653572,-460.0,0.00019497,2]
[373453886,1753014653581,-460.0,0.00019497,2]
[373453888,1753014653591,-460.0,0.00019497,2]
[373453890,1753014653600,-321.42,0.00019497,2]
[373453892,1753014653610,-460.0,0.00019497,2]
[373453894,1753014653619,-460.0,0.00019497,2]
[373453896,1753014653632,-460.0,0.00019497,2]
[373453898,1753014653642,-460.0,0.00019497,2]
[373453900,1753014653651,-460.0,0.00019497,2]
[373453901,1753014653661,-460.0,0.00019497,2]
[373453902,1753014653670,-460.0,0.00019497,2]
[373453903,1753014653678,-160.0,0.000195,2]
[373453904,1753014653687,-230.98123516,0.000195,2]
[373453905,1753014653696,-160.0,0.000195,2]
[373453906,1753014653706,-160.0,0.000195,2]
[373453907,1753014653715,-476.42619115,0.000195,2]
[373453908,1753014653724,-12615.16111038,0.000195,2]
[373453909,1753014653732,-160.0,0.00019502,2]
[373453910,1753014653742,-839.59621281,0.00019502,2]
[373453911,1753014653751,-214.5637056,0.00019502,2]
[373453912,1753014653760,-215.71456056,0.00019502,2]
[373453913,1753014653769,-525.91036056,0.00019502,2]
[373453914,1753014653778,-151.0,0.00019513,2]
[373453915,1753014653788,-246.399934,0.00019513,2]
[373453916,1753014653797,-517.171336,0.00019513,2]
[373453917,1753014653807,-517.171336,0.00019513,2]
[373453918,1753014653815,-460.0,0.00019518,2]
[373453919,1753014653824,-3665.59419369,0.0001959,2]
[373453920,1753014653833,-460.0,0.00019595,2]
[373453921,1753014653842,-2684.6,0.00019595,2]
[373453922,1753014653851,-460.0,0.00019595,2]
[373453923,1753014653861,-460.0,0.00019595,2]
[373453924,1753014653870,-245.89,0.0001962,2]
[373453926,1753014653882,-201.964236,0.00019641,2]
[373453928,1753014653891,-201.964236,0.00019641,2]
[373453930,1753014653900,-460.0,0.00019641,2]
[373453932,1753014653910,-460.0,0.00019641,2]
[373453934,1753014653919,-460.0,0.00019641,2]
[373453936,1753014653928,-460.0,0.00019641,2]
[373453938,1753014653938,-151.0,0.00019641,2]
[373453940,1753014653947,-160.648547,0.00019641,2]
[373453942,1753014653957,-160.648554,0.00019641,2]
[373453944,1753014653967,-162.006643,0.00019641,2]
[373453946,1753014653976,-162.006652,0.00019641,2]
[373453948,1753014653986,-460.0,0.00019641,2]
[373453960,1753014654091,-460.0,0.00019642,2]
[373453962,1753014654101,-595.21,0.00019642,2]
[373453964,1753014654110,-460.0,0.00019694,2]
[373453966,1753014654120,-151.0,0.00019695,2]
[373453968,1753014654130,-460.0,0.00019695,2]
[373453970,1753014654140,-517.171336,0.00019695,2]
[373453972,1753014654149,-517.171336,0.00019695,2]
[373453974,1753014654158,-460.0,0.00019695,2]
[373453976,1753014654168,-460.0,0.00019695,2]
[373453978,1753014654177,-460.0,0.00019695,2]
[373453980,1753014654187,-298.0,0.00019695,2]
[373453982,1753014654196,-487.07,0.00019697,2]
[373453984,1753014654205,-636.14,0.00019698,2]
[373453986,1753014654215,-460.0,0.00019698,2]
[373453988,1753014654224,-460.0,0.00019698,2]
[373453990,1753014654233,-500.0,0.00019722,2]
[373453992,1753014654242,-529.0,0.00019723,2]
[373453994,1753014654251,-587.0,0.00019723,2]
[373453996,1753014654262,-1302.68,0.00019745,2]
[373453998,1753014654272,-460.0,0.00019771,2]
[373454000,1753014654281,-450.63,0.00019771,2]
[373454002,1753014654290,-1000.0,0.00019787,2]
[373454004,1753014654299,-1000.0,0.00019787,2]
[373454006,1753014654308,-854.25622652,0.00019787,2]
[373454008,1753014654318,-1017.94766044,0.00019787,2]
[373454010,1753014654328,-500.0,0.00019787,2]